bitfinex-derivatives/quotes_SOLF0:USTF0_20250730
["timestamp","ask_amount","ask_price","bid_price","bid_amount"]
[1753914870374,3.03,175.41,175.4,3.34]
[1753914870782,3.03,175.4,175.38,3.34]
[1753914871077,3.03,175.39,175.38,3.34]
[1753914871683,3.03,175.39,175.35,3.21093047]
[1753914871881,3.03,175.39,175.36,3.34]
[1753914872381,5.7016,175.39,175.36,3.34]
[1753914872785,3.03,175.37,175.36,3.34]
[1753914875382,3.03,175.37,175.36,9.0425]
[1753914876485,3.03,175.37,175.36,3.34]
[1753914877480,3.03,175.37,175.34,5.703]
[1753914877681,3.03,175.37,175.35,3.34]
[1753914878186,3.03,175.36,175.35,3.34]
[1753914879687,3.03,175.36,175.35,9.0428]
[1753914882688,3.03,175.39,175.36,3.34]
[1753914883286,3.03,175.39,175.37,5.7021]
[1753914883485,3.03,175.39,175.37,9.0421]
[1753914883788,3.03,175.39,175.35,3.34]
[1753914884291,3.03,175.37,175.34,5.7029]
[1753914884479,3.03,175.37,175.32,104.4]
[1753914884679,5.7031,175.35,175.32,3.34]
[1753914884881,3.03,175.34,175.31,3.34]
[1753914885590,3.03,175.34,175.28,386.15093047]
[1753914885591,3.03,175.33,175.28,382.94]
[1753914885792,3.03,175.33,175.3,3.34]
[1753914886090,3.03,175.32,175.28,3.34]
[1753914886285,3.03,175.32,175.29,3.34]
[1753914886589,3.03,175.32,175.3,3.34]
[1753914886790,3.03,175.32,175.3,9.0442]
[1753914888388,3.03,175.31,175.3,9.0442]
[1753914889096,3.21093047,175.35,175.29,3.34]
[1753914889097,3.03,175.3,175.29,3.34]
[1753914891494,3.03,175.3,175.28,3.34]
[1753914891697,3.03,175.29,175.28,3.34]
[1753914891993,3.03,175.31,175.29,3.34]
[1753914893096,3.03,175.31,175.27,110.1253]
[1753914893298,3.03,175.31,175.3,3.34]
[1753914893794,5.7035,175.33,175.3,3.34]
[1753914893996,3.03,175.32,175.3,3.34]
[1753914894894,3.03,175.29,175.27,107.63093047]
[1753914895202,3.03,175.29,175.27,104.42]
[1753914895397,3.03,175.29,175.28,3.34]
[1753914896104,3.03,175.3,175.28,3.34]
[1753914896794,3.03,175.31,175.28,3.34]
[1753914897395,3.21093047,175.31,175.26,3.34]
[1753914897600,3.03,175.28,175.24,3.34]
[1753914897995,5.706,175.26,175.24,3.34]
[1753914898202,3.03,175.25,175.24,3.34]
[1753914898603,3.03,175.25,175.23,3.08]
[1753914898806,3.18,175.26,175.22,3.08]
[1753914899106,3.18,175.26,175.24,3.08]
[1753914899297,3.18,175.26,175.25,3.08]
[1753914900207,3.18,175.28,175.25,3.08]
[1753914900501,3.21093047,175.33,175.26,3.08]
[1753914900702,5.7038,175.32,175.29,3.21093047]
[1753914900907,8.8838,175.32,175.31,3.08]
[1753914901111,3.21093047,175.35,175.29,3.08]
[1753914901307,8.8844,175.3,175.26,5.7057]
[1753914901514,3.18,175.29,175.27,3.08]
[1753914901708,3.18,175.29,175.28,3.08]
[1753914902107,8.8842,175.31,175.28,3.08]
[1753914902412,3.18,175.3,175.29,3.08]
[1753914903208,8.8844,175.3,175.29,3.08]
[1753914903611,3.18,175.3,175.29,3.08]
[1753914904310,3.18,175.3,175.25,8.91683047]
[1753914904311,3.18,175.3,175.25,5.7059]
[1753914904511,3.18,175.3,175.24,104.46]
[1753914904512,3.18,175.3,175.28,3.08]
[1753914904714,3.18,175.29,175.28,3.08]
[1753914906012,3.21093047,175.34,175.28,3.08]
[1753914906214,3.18,175.33,175.28,3.08]
[1753914906510,3.18,175.33,175.3,3.21093047]
[1753914906814,3.18,175.36,175.32,3.08]
[1753914907112,3.18,175.4,175.35,3.08]
[1753914907409,3.18,175.43,175.37,3.08]
[1753914907815,5.701,175.41,175.37,3.08]
[1753914908116,386.49093047,175.44,175.36,3.21093047]
[1753914908316,3.18,175.39,175.38,3.08]
[1753914908614,8.8815,175.39,175.38,3.08]
[1753914909611,3.18,175.39,175.38,3.08]
[1753914909821,3.18,175.41,175.38,3.08]
[1753914910416,3.18,175.4,175.39,3.08]
[1753914910712,3.18,175.44,175.39,3.08]
[1753914911716,3.18,175.42,175.39,8.7814]
[1753914912011,3.18,175.42,175.38,3.08]
[1753914912515,8.8806,175.42,175.39,3.08]
[1753914913914,3.18,175.41,175.39,3.08]
[1753914917712,5.7006,175.42,175.39,3.08]
[1753914918015,3.18,175.48,175.42,3.08]
[1753914918212,3.18,175.48,175.43,3.21093047]
[1753914918607,3.18,175.48,175.45,3.08]
[1753914919116,3.18,175.46,175.45,3.08]
[1753914919721,8.8792,175.46,175.45,3.08]
[1753914919916,3.18,175.46,175.43,3.21093047]
[1753914920121,3.18,175.46,175.44,3.08]
[1753914920311,5.6996,175.45,175.44,3.08]
[1753914920517,8.8796,175.45,175.44,3.08]
[1753914922222,8.8796,175.45,175.32,3.21093047]
[1753914922223,3.21093047,175.51,175.46,3.08]
[1753914922420,3.18,175.47,175.46,3.08]
[1753914922621,8.8792,175.47,175.46,3.08]
[1753914923812,5.6994,175.46,175.44,3.08]
[1753914924023,8.8794,175.46,175.45,3.08]
[1753914924824,5.6994,175.46,175.43,3.21093047]
[1753914925024,3.18,175.45,175.44,3.08]
[1753914926925,3.18,175.45,175.32,8.91693047]
[1753914926926,5.6996,175.45,175.41,3.21093047]
[1753914927130,3.18,175.44,175.43,3.08]
[1753914928427,8.8796,175.45,175.42,3.08]
[1753914928628,3.18,175.45,175.42,3.08]
[1753914929224,3.21093047,175.49,175.42,3.08]
[1753914929225,3.15,175.48,175.42,3.19]
[1753914929624,3.15,175.44,175.42,3.19]
[1753914929824,3.15,175.43,175.42,3.19]
[1753914930525,3.15,175.43,175.4,3.19]
[1753914931731,3.15,175.4,175.38,3.19]
[1753914932329,5.7013,175.4,175.38,3.19]
[1753914932529,3.15,175.39,175.38,3.19]
[1753914934224,3.15,175.38,175.37,3.19]
[1753914936236,8.8518,175.38,175.37,3.19]
[1753914936840,3.15,175.38,175.37,3.19]
[1753914938034,8.8513,175.4,175.37,3.19]
[1753914938240,3.15,175.4,175.37,3.19]
[1753914939237,8.8513,175.4,175.37,3.19]
[1753914939442,3.15,175.39,175.38,3.19]
[1753914940941,8.8515,175.39,175.38,3.19]
[1753914941242,3.15,175.38,175.36,3.19]
[1753914942745,3.15,175.39,175.37,3.19]
[1753914943544,3.15,175.39,175.38,3.19]
[1753914945047,3.15,175.38,175.36,8.8923]
[1753914945238,3.15,175.37,175.36,5.7023]
[1753914945446,8.8513,175.4,175.36,5.7023]
[1753914945740,3.15,175.38,175.37,3.19]
[1753914950847,3.15,175.38,175.37,8.8921]
[1753914952236,5.7013,175.4,175.37,8.8921]
[1753914952443,3.15,175.39,175.38,3.19]
[1753914952742,3.21093047,175.41,175.39,3.19]
[1753914952743,5.701,175.41,175.39,3.19]
[1753914952945,8.851,175.41,175.39,3.19]
[1753914953343,8.8506,175.42,175.39,8.8915]
[1753914953644,3.15,175.45,175.39,3.19]
[1753914953844,5.7001,175.44,175.4,5.7009]
[1753914954140,3.15,175.43,175.41,3.19]
[1753914954546,8.85,175.44,175.41,3.19]
[1753914954846,16.17104665,175.5,175.4,8.91183047]
[1753914954847,3.15,175.49,175.44,3.19]
[1753914955047,8.849,175.47,175.44,3.19]
[1753914955241,3.21093047,175.52,175.45,5.6995]
[1753914955445,3.15,175.48,175.46,3.19]
[1753914956445,3.21093047,175.52,175.44,3.21093047]
[1753914956644,386.53093047,175.54,175.47,3.19]
[1753914956844,4.43454395,175.53,175.47,3.19]
[1753914957047,3.15,175.51,175.47,3.19]
[1753914957948,3.15,175.53,175.47,3.19]
[1753914959149,5.6973,175.52,175.47,5.6986]
[1753914959351,3.21093047,175.56,175.41,3.21093047]
[1753914959352,3.33,175.51,175.48,6.37093047]
[1753914959551,3.33,175.55,175.35,5.706]
[1753914959750,3.33,175.55,175.42,3.16]
[1753914959751,3.33,175.48,175.42,3.16]
[1753914960753,3.33,175.46,175.4,5.7011]
[1753914961355,3.33,175.46,175.42,3.16]
[1753914963360,3.33,175.48,175.41,3.16]
[1753914963757,5.6994,175.46,175.41,8.8606]
[1753914963960,5.6994,175.46,175.4,3.21093047]
[1753914963961,3.33,175.45,175.42,3.16]
[1753914964858,3.33,175.48,175.42,3.16]
[1753914965161,3.21093047,175.49,175.42,3.16]
[1753914965362,3.33,175.47,175.42,3.16]
[1753914965863,5.6998,175.45,175.42,3.16]
[1753914966059,9.0298,175.45,175.42,3.16]
[1753914967662,9.0292,175.47,175.42,3.16]
[1753914967863,3.33,175.46,175.42,3.16]
[1753914968062,3.33,175.45,175.42,3.16]
[1753914968752,9.0296,175.45,175.42,3.16]
[1753914969469,5.6996,175.45,175.42,3.16]
[1753914969660,3.33,175.44,175.42,3.16]
[1753914971159,5.6993,175.46,175.42,3.16]
[1753914971365,3.33,175.45,175.42,8.8605]
[1753914971662,3.33,175.45,175.43,3.16]
[1753914972372,3.33,175.45,175.44,3.16]
[1753914974177,3.33,175.47,175.44,3.16]
[1753914974365,3.33,175.47,175.44,3.21093047]
[1753914974564,3.33,175.47,175.45,3.16]
[1753914974769,3.33,175.49,175.46,6.37093047]
[1753914974971,3.33,175.51,175.47,3.16]
[1753914975274,3.33,175.51,175.46,3.21093047]
[1753914975275,5.6982,175.5,175.46,3.21093047]
[1753914975473,3.33,175.49,175.48,3.16]
[1753914978184,3.33,175.49,175.44,6.37093047]
[1753914978485,3.33,175.49,175.44,3.16]
[1753914979180,3.33,175.45,175.44,3.16]
[1753914979575,9.0296,175.45,175.44,3.16]
[1753914979777,3.33,175.43,175.42,3.16]
[1753914981278,3.33,175.43,175.39,3.21093047]
[1753914981579,4.77484665,175.58,175.42,3.16]
[1753914981779,5.6961,175.56,175.53,3.16]
[1753914981980,3.33,175.57,175.53,3.16]
[1753914982184,3.33,175.56,175.53,3.16]
[1753914982585,3.33,175.56,175.54,3.21093047]
[1753914982785,3.33,175.56,175.55,3.16]
[1753914982986,3.33,175.62,175.55,3.16]
[1753914983185,3.33,175.62,175.57,3.16]
[1753914983385,3.33,175.63,175.56,3.21093047]
[1753914983688,3.33,175.59,175.52,6.37093047]
[1753914983888,5.6962,175.56,175.52,12.06823047]
[1753914984077,5.6962,175.56,175.53,3.16]
[1753914984281,3.33,175.54,175.53,3.16]
[1753914985589,9.0266,175.54,175.53,3.16]
[1753914986186,3.33,175.54,175.53,3.16]
[1753914986685,3.33,175.56,175.52,3.16]
[1753914986894,3.21093047,175.64,175.55,3.16]
[1753914987188,3.21093047,175.64,175.57,3.16]
[1753914987189,3.33,175.6,175.57,3.16]
[1753914987685,3.33,175.6,175.54,3.16]
[1753914988589,3.33,175.57,175.54,8.8564]
[1753914988783,3.33,175.57,175.55,3.07]
[1753914988987,3.33,175.57,175.56,3.07]
[1753914989502,3.21093047,175.66,175.57,3.07]
[1753914989681,3.12,175.64,175.59,3.07]
[1753914989883,3.12,175.65,175.59,3.07]
[1753914990287,5.6937,175.64,175.59,8.7648]
[1753914990491,3.12,175.63,175.6,3.07]
[1753914990786,3.12,175.63,175.58,3.07]
[1753914990998,3.12,175.59,175.56,3.21093047]
[1753914991182,3.12,175.58,175.55,3.07]
[1753914991390,3.12,175.58,175.55,5.6961]
[1753914991582,3.12,175.57,175.56,3.07]
[1753914991787,3.12,175.57,175.55,5.6961]
[1753914991788,3.21093047,175.62,175.54,3.21093047]
[1753914991990,3.12,175.58,175.57,3.07]
[1753914992492,3.12,175.59,175.58,3.07]
[1753914993193,3.12,175.59,175.55,5.6961]
[1753914993194,3.12,175.61,175.54,11.97753047]
[1753914993490,3.12,175.61,175.55,3.07]
[1753914994191,3.12,175.61,175.55,5.6963]
[1753914994398,5.6952,175.59,175.56,3.07]
[1753914994599,8.8152,175.59,175.56,3.07]
[1753914994896,3.12,175.58,175.57,3.07]
[1753914995292,5.6952,175.59,175.56,5.6959]
[1753914995493,8.8152,175.59,175.58,3.07]
[1753914995695,3.12,175.57,175.56,3.07]
[1753914995891,3.12,175.61,175.54,6.28093047]
[1753914996101,3.12,175.59,175.54,3.07]
[1753914996294,3.21093047,175.6,175.54,3.07]
[1753914996295,3.12,175.55,175.54,3.07]
[1753914996892,8.8163,175.55,175.54,3.07]
[1753914997093,3.12,175.54,175.53,3.07]
[1753914998795,8.8161,175.56,175.54,3.07]
[1753914999996,3.12,175.56,175.54,3.07]
[1753915000800,8.816,175.56,175.55,3.07]
[1753915001100,8.816,175.56,175.5,3.21093047]
[1753915001101,3.12,175.56,175.54,3.07]
[1753915001696,5.6966,175.55,175.51,5.6974]
[1753915001892,3.12,175.54,175.51,3.07]
[1753915002402,3.12,175.51,175.47,3.21093047]
[1753915002702,3.21093047,175.55,175.47,3.21093047]
[1753915002703,3.12,175.54,175.48,3.07]
[1753915003097,3.21093047,175.51,175.46,3.07]
[1753915003303,3.12,175.49,175.47,3.07]
[1753915003602,3.12,175.49,175.48,3.07]
[1753915004192,5.6979,175.5,175.48,3.07]
[1753915004502,3.12,175.5,175.49,3.07]
[1753915006105,3.12,175.51,175.5,3.07]
[1753915007004,8.8176,175.51,175.5,3.07]
[1753915007406,3.12,175.51,175.5,3.07]
[1753915007600,3.21093047,175.53,175.48,3.07]
[1753915008101,3.12,175.49,175.48,3.07]
[1753915008802,8.8178,175.51,175.48,3.07]
[1753915009108,3.12,175.5,175.49,3.07]
[1753915009711,3.12,175.5,175.44,3.07]
[1753915009911,3.12,175.48,175.45,3.07]
[1753915010403,3.12,175.48,175.42,383.02]
[1753915010603,3.12,175.48,175.44,3.07]
[1753915010808,3.12,175.48,175.45,3.07]
[1753915011206,3.12,175.47,175.43,3.07]
[1753915011407,6.33093047,175.47,175.43,3.07]
[1753915011610,3.12,175.46,175.43,3.07]
[1753915011803,3.12,175.44,175.43,3.07]
[1753915013609,3.12,175.48,175.43,3.07]
[1753915013812,3.21093047,175.49,175.43,3.07]
[1753915014014,3.12,175.47,175.43,3.07]
[1753915014606,3.21093047,175.53,175.44,3.07]
[1753915014809,3.21093047,175.53,175.46,3.07]
[1753915014810,3.12,175.51,175.46,3.07]
[1753915015209,8.8178,175.51,175.46,5.6989]
[1753915015518,8.8178,175.51,175.47,6.28093047]
[1753915015713,3.12,175.51,175.48,3.07]
[1753915016108,3.12,175.53,175.48,3.07]
[1753915016305,8.8172,175.53,175.5,3.07]
[1753915016510,3.12,175.52,175.51,3.07]
[1753915017410,399.02314665,175.62,175.51,3.07]
[1753915017618,399.02314665,175.62,175.51,6.28093047]
[1753915017619,3.12,175.57,175.51,6.28093047]
[1753915018216,5.6969,175.54,175.51,6.28093047]
[1753915018416,3.12,175.53,175.52,3.07]
[1753915022107,4.77484665,175.63,175.52,3.22]
[1753915022426,4.77484665,175.63,175.5,3.21093047]
[1753915022427,3.27,175.64,175.56,3.22]
[1753915022716,3.27,175.57,175.56,3.22]
[1753915023113,3.27,175.56,175.55,3.22]
[1753915023512,5.6952,175.59,175.54,5.6964]
[1753915023712,3.27,175.57,175.56,3.22]
[1753915024213,8.9657,175.57,175.56,3.22]
[1753915024419,3.27,175.57,175.53,6.43093047]
[1753915024612,3.27,175.57,175.53,3.22]
[1753915024812,5.6962,175.56,175.53,3.22]
[1753915025016,3.27,175.54,175.53,3.22]
[1753915025218,3.27,175.56,175.54,3.22]
[1753915025416,3.27,175.56,175.55,3.22]
[1753915025916,5.6953,175.59,175.54,8.90753047]
[1753915026116,3.27,175.57,175.56,3.22]
[1753915026719,3.27,175.58,175.55,3.22]
[1753915026919,8.9648,175.6,175.55,3.22]
[1753915027116,3.21093047,175.63,175.55,3.22]
[1753915027514,3.27,175.58,175.55,3.22]
[1753915027714,3.27,175.57,175.56,3.22]
[1753915028522,8.9653,175.59,175.56,3.22]
[1753915028715,3.27,175.58,175.57,3.22]
[1753915028916,3.27,175.58,175.56,3.22]
[1753915029219,3.27,175.57,175.56,3.22]
[1753915031125,3.27,175.62,175.57,3.22]
[1753915031521,3.27,175.61,175.58,3.21093047]
[1753915031926,3.27,175.61,175.6,3.22]
[1753915036735,3.27,175.61,175.58,3.22]
[1753915037224,3.27,175.6,175.58,3.22]
[1753915037426,3.27,175.6,175.59,3.22]
[1753915041726,3.27,175.6,175.57,8.90653047]
[1753915042030,3.27,175.6,175.55,3.22]
[1753915042332,3.27,175.58,175.52,3.22]
[1753915042934,5.6962,175.56,175.52,8.9172]
[1753915043225,3.27,175.55,175.54,3.22]
[1753915044030,5.6957,175.57,175.54,3.22]
[1753915044229,3.27,175.56,175.55,3.22]
[1753915044423,3.27,175.58,175.51,6.43093047]
[1753915044731,3.27,175.58,175.52,8.9172]
[1753915045329,3.27,175.55,175.53,8.9169]
[1753915045638,3.27,175.55,175.54,3.22]
[1753915048134,3.27,175.54,175.52,3.22]
[1753915049434,3.25,175.53,175.52,8.9173]
[1753915050037,3.25,175.53,175.52,3.22]
[1753915050935,3.25,175.54,175.53,3.03]
[1753915051333,3.25,175.54,175.53,8.727]
[1753915051634,3.25,175.54,175.53,3.03]
[1753915054238,3.21093047,175.57,175.5,3.03]
[1753915054535,3.25,175.52,175.5,3.03]
[1753915054732,5.6964,175.55,175.51,5.6976]
[1753915054935,3.25,175.54,175.53,3.03]
[1753915055238,3.25,175.54,175.49,3.21093047]
[1753915055239,8.9469,175.54,175.5,8.7277]
[1753915055439,3.25,175.53,175.51,3.03]
[1753915055738,3.25,175.52,175.51,3.03]
[1753915055928,3.25,175.52,175.45,382.9]
[1753915056132,3.21093047,175.51,175.46,3.03]
[1753915056338,3.25,175.5,175.46,3.03]
[1753915056641,3.25,175.48,175.47,3.03]
[1753915056934,3.25,175.48,175.45,8.7294]
[1753915057139,3.25,175.47,175.46,3.03]
[1753915060240,3.25,175.46,175.44,3.03]
[1753915060442,3.25,175.45,175.44,3.03]
[1753915060939,5.6987,175.48,175.44,5.6999]
[1753915061425,3.25,175.47,175.43,5.7001]
[1753915061630,3.25,175.44,175.38,3.03]
[1753915061838,3.25,175.42,175.36,3.03]
[1753915062035,3.25,175.42,175.36,8.7324]
[1753915062236,3.25,175.4,175.37,3.03]
[1753915063240,8.9512,175.4,175.37,3.03]
[1753915063440,5.7012,175.4,175.37,3.03]
[1753915063739,3.25,175.38,175.37,3.03]
[1753915069141,3.25,175.38,175.36,3.03]
[1753915069342,3.25,175.38,175.37,3.03]
[1753915069937,8.91233047,175.4,175.36,5.7024]
[1753915069938,3.21093047,175.4,175.36,5.7024]
[1753915070144,3.25,175.38,175.37,3.03]
[1753915070837,3.25,175.41,175.37,3.03]
[1753915071242,3.25,175.41,175.38,3.03]
[1753915071443,3.25,175.41,175.38,5.7018]
[1753915071742,3.25,175.41,175.4,3.03]
[1753915072635,3.25,175.41,175.38,3.03]
[1753915072837,3.25,175.41,175.39,3.03]
[1753915073840,3.25,175.4,175.38,3.03]
[1753915074137,3.25,175.39,175.38,3.03]
[1753915075136,3.25,175.42,175.37,104.48]
[1753915075333,3.25,175.41,175.37,104.48]
[1753915075536,3.21093047,175.44,175.39,5.7015]
[1753915075742,3.25,175.43,175.4,3.03]
[1753915076137,3.21093047,175.44,175.4,5.7012]
[1753915076339,3.25,175.42,175.41,3.03]
[1753915077139,6.46093047,175.44,175.41,3.03]
[1753915077441,3.25,175.43,175.42,3.03]
[1753915077944,3.25,175.44,175.42,3.03]
[1753915078140,3.25,175.47,175.42,3.03]
[1753915078543,8.9496,175.45,175.42,3.03]
[1753915078743,3.23,175.44,175.43,3.05]
[1753915079144,3.23,175.45,175.39,3.05]
[1753915079346,3.23,175.45,175.39,107.53]
[1753915079539,3.23,175.43,175.39,107.53]
[1753915079744,3.23,175.43,175.4,3.05]
[1753915080246,3.23,175.42,175.4,3.05]
[1753915080547,3.23,175.45,175.4,3.05]
[1753915080743,3.23,175.45,175.42,5.7003]
[1753915080943,3.23,175.45,175.4,3.05]
[1753915081143,3.23,175.44,175.4,3.05]
[1753915081343,3.23,175.44,175.42,3.05]
[1753915082046,3.23,175.43,175.4,8.7509]
[1753915082346,3.23,175.43,175.42,3.05]
[1753915083747,8.9301,175.44,175.4,5.7009]
[1753915083949,8.9301,175.44,175.43,3.05]
[1753915084847,3.23,175.44,175.43,3.05]
[1753915087847,5.6997,175.45,175.43,3.05]
[1753915088041,3.23,175.48,175.44,3.05]
[1753915088551,3.23,175.47,175.44,3.05]
[1753915088850,8.9288,175.48,175.45,3.05]
[1753915089045,3.23,175.51,175.43,3.21093047]
[1753915089250,3.23,175.49,175.42,3.05]
[1753915089448,5.6994,175.46,175.42,3.05]
[1753915089647,3.21093047,175.48,175.43,3.05]
[1753915089947,5.7007,175.42,175.4,3.05]
[1753915090150,3.23,175.41,175.4,3.05]
[1753915090852,8.9308,175.41,175.4,3.05]
[1753915091456,8.9312,175.4,175.39,3.05]
[1753915092755,5.701,175.41,175.39,3.05]
[1753915092946,8.931,175.41,175.4,3.05]
[1753915095561,3.23,175.39,175.38,3.05]
[1753915096058,5.7015,175.39,175.37,3.05]
[1753915096554,8.9315,175.39,175.36,104.54]
[1753915096754,8.9315,175.39,175.38,3.05]
[1753915097752,3.23,175.39,175.38,3.05]
[1753915098855,8.9315,175.39,175.38,3.05]
[1753915099158,3.23,175.39,175.38,3.05]
[1753915100059,3.21093047,175.44,175.38,3.05]
[1753915100256,3.23,175.4,175.38,3.05]
[1753915101855,8.9311,175.41,175.38,3.05]
[1753915102463,3.23,175.4,175.38,3.05]
[1753915103560,5.7011,175.41,175.37,5.7021]
[1753915103757,3.23,175.39,175.38,3.05]
[1753915111166,3.23,175.39,175.38,8.7518]
[1753915111460,3.24,175.43,175.39,3.08]
[1753915111664,3.24,175.46,175.41,3.21093047]
[1753915111967,389.46545094,175.54,175.44,3.08]
[1753915111968,5.699,175.47,175.44,3.08]
[1753915112160,3.24,175.46,175.44,3.08]
[1753915113361,3.24,175.46,175.45,3.08]
[1753915115770,3.24,175.51,175.43,3.21093047]
[1753915115964,3.21093047,175.52,175.47,3.08]
[1753915115965,3.24,175.5,175.47,3.08]
[1753915116270,3.24,175.5,175.48,3.08]
[1753915116471,3.24,175.49,175.48,3.08]
[1753915116958,3.24,175.47,175.4,3.21093047]
[1753915117159,3.24,175.47,175.4,110.73093047]
[1753915117360,3.24,175.47,175.41,3.08]
[1753915117559,3.24,175.47,175.42,3.08]
[1753915118173,3.24,175.43,175.41,5.7008]
[1753915118363,3.24,175.43,175.41,8.7808]
[1753915118572,3.24,175.45,175.42,3.08]
[1753915118773,3.24,175.44,175.42,3.08]
[1753915118969,3.24,175.44,175.41,5.7008]
[1753915119279,3.24,175.44,175.43,3.08]
[1753915119678,3.21093047,175.5,175.42,3.21093047]
[1753915119872,3.24,175.48,175.43,3.08]
[1753915120076,3.24,175.47,175.45,3.08]
[1753915120283,3.24,175.47,175.46,3.08]
[1753915120575,3.24,175.47,175.45,3.08]
[1753915120770,3.24,175.51,175.45,3.08]
[1753915120973,3.24,175.49,175.46,3.08]
[1753915121172,5.699,175.47,175.45,3.08]
[1753915121478,3.24,175.46,175.44,3.21093047]
[1753915121878,3.24,175.46,175.45,3.08]
[1753915122378,3.24,175.48,175.45,5.6993]
[1753915122678,3.24,175.48,175.44,3.21093047]
[1753915122679,3.24,175.51,175.46,3.08]
[1753915122880,3.24,175.51,175.46,6.29093047]
[1753915123180,5.6979,175.5,175.47,3.08]
[1753915123373,3.24,175.49,175.47,3.08]
[1753915124879,5.6977,175.51,175.48,3.08]
[1753915125080,8.9377,175.51,175.48,6.29093047]
[1753915125272,8.9377,175.51,175.49,3.08]
[1753915126282,3.24,175.51,175.49,3.08]
[1753915126985,8.9378,175.51,175.5,3.08]
[1753915129778,3.24,175.51,175.5,3.08]
[1753915130582,8.9376,175.51,175.5,3.08]
[1753915130774,3.24,175.51,175.5,3.08]
[1753915131487,3.24,175.5,175.42,6.29093047]
[1753915131686,3.24,175.48,175.43,3.08]
[1753915132082,3.24,175.48,175.41,3.08]
[1753915132285,5.7001,175.44,175.4,8.7811]
[1753915132583,3.24,175.43,175.42,3.08]
[1753915132782,8.9402,175.43,175.39,5.7013]
[1753915132981,3.21093047,175.47,175.37,3.21093047]
[1753915132982,3.24,175.42,175.41,3.08]
[1753915133182,3.21093047,175.47,175.41,3.08]
[1753915133385,3.24,175.43,175.41,3.08]
[1753915134190,3.24,175.44,175.41,3.08]
[1753915134385,3.21093047,175.47,175.41,3.08]
[1753915134586,3.24,175.45,175.41,3.08]
[1753915135085,3.24,175.46,175.39,3.21093047]
[1753915135292,3.24,175.46,175.42,3.08]
[1753915136287,5.7002,175.43,175.42,3.08]
[1753915136499,8.9402,175.43,175.42,3.08]
[1753915137383,5.6999,175.44,175.42,3.08]
[1753915137687,3.21093047,175.51,175.41,3.21093047]